fUST/lending_fUST_20241220
["ID","MTS","AMOUNT","RATE_DAILY","PERIOD"]
[346022529,1734631840118,-407.91422739,0.00024657,6]
[346022531,1734631840128,-500.0,0.00024657,6]
[346022533,1734631840138,-500.0,0.00024657,6]
[346022535,1734631840147,-502.92164757,0.00024657,6]
[346022537,1734631840156,-503.42781703,0.00024657,6]
[346022539,1734631840166,-500.0,0.00024657,6]
[346022541,1734631840175,-1408.01,0.00024657,6]
[346022543,1734631840184,-500.0,0.00024657,6]
[346022545,1734631840194,-1184.33,0.00024657,6]
[346022547,1734631840204,-500.0,0.00024657,6]
[346022549,1734631840213,-500.0,0.00024657,6]
[346022551,1734631840223,-500.0,0.00024657,6]
[346022553,1734631840232,-500.0,0.00024657,6]
[346022555,1734631840241,-150.0,0.00024657,6]
[346022557,1734631840250,-500.0,0.00024657,6]
[346022559,1734631840264,-1516.97,0.00024657,6]
[346022561,1734631840274,-500.0,0.00024657,6]
[346022562,1734631840284,-1563.11,0.00024657,6]
[346022565,1734631840294,-500.0,0.00024657,6]
[346022567,1734631840304,-521.07,0.00024657,6]
[346022568,1734631840314,-500.0,0.00024657,6]
[346022570,1734631840324,-500.0,0.00024657,6]
[346022572,1734631840334,-500.0,0.00024657,6]
[346022574,1734631840343,-519.14,0.00024657,6]
[346022576,1734631840352,-500.0,0.00024657,6]
[346022578,1734631840362,-500.0,0.00024657,6]
[346022581,1734631840373,-851.76,0.00024657,6]
[346022582,1734631840383,-500.0,0.00024657,6]
[346022585,1734631840393,-500.0,0.00024657,6]
[346022587,1734631840402,-500.0,0.00024657,6]
[346022589,1734631840412,-500.0,0.00024657,6]
[346022591,1734631840424,-500.0,0.00024657,6]
[346022593,1734631840446,-500.0,0.00024657,6]
[346022595,1734631840466,-500.0,0.00024657,6]
[346022597,1734631840477,-750.08,0.00024657,6]
[346022599,1734631840487,-1190.85,0.00024657,6]
[346022601,1734631840498,-500.0,0.00024657,6]
[346022602,1734631840508,-500.0,0.00024657,6]
[346022604,1734631840521,-534.03,0.00024657,6]
[346022606,1734631840530,-500.0,0.00024657,6]
[346022608,1734631840541,-151.0,0.00024657,7]
[346022610,1734631840551,-44.65241468,0.00024657,6]
[346022613,1734631840565,-455.34758532,0.00024657,6]
[346022615,1734631840576,-151.0,0.00024657,7]
[346022617,1734631840587,-151.0,0.00024657,7]
[346022619,1734631840597,-151.0,0.00024657,7]
[346022621,1734631840607,-500.0,0.00024657,6]
[346022623,1734631840617,-500.0,0.00024657,6]
[346022625,1734631840630,-500.0,0.00024657,6]
[346022627,1734631840639,-682.53802181,0.00024657,6]
[346022630,1734631840655,-630.96827636,0.00024657,6]
[346022632,1734631840666,-301.19370183,0.00024657,6]
[346022634,1734631840675,-1677.53429817,0.00024657,6]
[346022636,1734631840686,-488.1975,0.00024657,6]
[346022639,1734631840698,-351.62820183,0.00024657,6]
[346022641,1734631840707,-500.0,0.00024657,6]
[346022643,1734631840717,-328.71609907,0.00024657,6]
[346022645,1734631840728,-2095.90390093,0.00024657,6]
[346022647,1734631840737,-500.0,0.00024657,6]
[346022649,1734631840747,-810.09609906,0.00024657,6]
[346022651,1734631840758,-1229.34390094,0.00024657,6]
[346022653,1734631840770,-500.0,0.00024657,6]
[346022655,1734631840781,-1620.55,0.00024657,2]
[346022657,1734631840791,-500.0,0.00024657,6]
[346022659,1734631840800,-683.99,0.00024657,6]
[346022661,1734631840809,-500.0,0.00024657,6]
[346022663,1734631840820,-500.12304628,0.00024657,6]
[346022666,1734631840830,-500.0,0.00024657,6]
[346022668,1734631840839,-633.27,0.00024657,6]
[346022670,1734631840851,-500.0,0.00024657,6]
[346022672,1734631840865,-500.0,0.00024657,6]
[346022674,1734631840875,-500.0,0.00024657,6]
[346022676,1734631840884,-159.45371918,0.00024657,6]
[346022678,1734631840895,-3235.93,0.00024657,6]
[346022680,1734631840905,-500.0,0.00024657,6]
[346022682,1734631840915,-925.69,0.00024657,6]
[346022684,1734631840925,-500.0,0.00024657,6]
[346022686,1734631840936,-539.72,0.00024657,6]
[346022688,1734631840945,-500.0,0.00024657,6]
[346022690,1734631840955,-500.0,0.00024657,6]
[346022692,1734631840965,-500.0,0.00024657,6]
[346022694,1734631840974,-500.0,0.00024657,6]
[346022696,1734631840985,-3523.36,0.00024657,6]
[346022698,1734631840996,-500.0,0.00024657,6]
[346022700,1734631841005,-500.0,0.00024657,6]
[346022702,1734631841020,-151.27047065,0.00024657,6]
[346022705,1734631841030,-500.0,0.00024657,6]
[346022707,1734631841039,-500.0,0.00024657,6]
[346022709,1734631841049,-500.0,0.00024657,6]
[346022710,1734631841059,-500.0,0.00024657,6]
[346022713,1734631841068,-500.0,0.00024657,6]
[346022715,1734631841078,-724.32,0.00024657,6]
[346022717,1734631841088,-886.8,0.00024657,6]
[346022719,1734631841097,-22365.56,0.00024657,6]
[346022721,1734631841107,-502.99172372,0.00024657,6]
[346022723,1734631841116,-1576.9,0.00024657,6]
[346022725,1734631841126,-728.7,0.00024657,6]
[346022726,1734631841136,-1142.69,0.00024657,6]
[346022728,1734631841145,-500.0,0.00024657,6]
[346022731,1734631841155,-500.0,0.00024657,6]
[346022733,1734631841165,-500.0,0.00024657,6]
[346022735,1734631841175,-500.0,0.00024657,6]
[346022737,1734631841185,-19519.85,0.00024657,6]
[346022739,1734631841195,-500.0,0.00024657,6]
[346022741,1734631841205,-500.0,0.00024657,6]
[346022743,1734631841215,-500.0,0.00024657,6]
[346022745,1734631841224,-500.0,0.00024657,6]
[346022747,1734631841234,-4232.01,0.00024657,6]
[346022749,1734631841244,-500.0,0.00024657,6]
[346022751,1734631841254,-500.0,0.00024657,6]
[346022753,1734631841269,-9749.58,0.00024657,6]
[346022755,1734631841279,-2045.88,0.00024657,6]
[346022757,1734631841289,-561.99,0.00024657,6]
[346022759,1734631841299,-500.0,0.00024657,6]
[346022761,1734631841309,-500.0,0.00024657,6]
[346022763,1734631841319,-500.0,0.00024657,6]
[346022765,1734631841329,-500.0,0.00024657,2]
[346022767,1734631841339,-500.0,0.00024657,6]
[346022769,1734631841348,-623.09,0.00024657,6]
[346022771,1734631841358,-500.0,0.00024657,6]
[346022773,1734631841368,-2247.93713923,0.00024657,6]
[346022783,1734631841455,-683.46123803,0.00024657,6]
[346022786,1734631841476,-744.50162274,0.00024657,6]
[346022788,1734631841486,-500.0,0.00024657,6]
[346022790,1734631841497,-151.0,0.00024657,7]
[346022792,1734631841507,-151.0,0.00024657,7]
[346022794,1734631841523,-232.727815,0.00024657,7]
[346022796,1734631841534,-151.0,0.00024657,7]
[346022798,1734631841545,-151.0,0.00024657,7]
[346022800,1734631841554,-151.0,0.00024657,7]
[346022802,1734631841564,-151.0,0.00024657,7]
[346022804,1734631841574,-151.0,0.00024657,7]
[346022806,1734631841583,-151.0,0.00024657,7]
[346022808,1734631841593,-293.332202,0.00024657,7]
[346022810,1734631841603,-5949.77,0.00024657,6]
[346022812,1734631841613,-1365.79,0.00024657,6]
[346022814,1734631841623,-500.0,0.00024657,6]
[346022816,1734631841633,-500.0,0.00024657,6]
[346022818,1734631841643,-501.29369204,0.00024657,6]
[346022820,1734631841652,-500.0,0.00024657,6]
[346022822,1734631841663,-545.75,0.00024657,6]
[346022825,1734631841682,-526.51,0.00024657,6]
[346022827,1734631841697,-500.0,0.00024657,6]
[346022830,1734631841709,-500.0,0.00024657,6]
[346022832,1734631841720,-500.0,0.00024657,6]
[346022834,1734631841731,-500.0,0.00024657,6]
[346022836,1734631841742,-203.310534,0.00024657,7]
[346022838,1734631841754,-402.69635456,0.00024657,6]
[346022840,1734631841772,-500.0,0.00024657,6]
[346022843,1734631841784,-500.0,0.00024657,6]
[346022845,1734631841796,-174.131865,0.00024657,7]
[346022847,1734631841807,-500.0,0.00024657,6]
[346022849,1734631841819,-174.131865,0.00024657,7]
[346022851,1734631841830,-174.131865,0.00024657,7]
[346022853,1734631841841,-174.131865,0.00024657,7]
[346022855,1734631841851,-1385.45,0.00024657,6]
[346022857,1734631841862,-174.131865,0.00024657,7]
[346022859,1734631841874,-500.0,0.00024657,6]
[346022862,1734631841886,-174.131865,0.00024657,7]
[346022864,1734631841899,-174.131865,0.00024657,7]
[346022866,1734631841910,-174.131865,0.00024657,7]
[346022868,1734631841922,-500.0,0.00024657,6]
[346022870,1734631841934,-174.131865,0.00024657,7]
[346022872,1734631841945,-12861.18099473,0.00024657,6]
[346022884,1734631842061,-290.77627598,0.00024657,6]
[346022886,1734631842074,-4700.71272929,0.00024657,6]
[346022888,1734631842086,-216.43727071,0.00024657,6]
[346022890,1734631842101,-283.56272929,0.00024657,6]
[346022892,1734631842113,-174.131865,0.00024657,7]
[346022894,1734631842125,-500.0,0.00024657,6]
[346022897,1734631842136,-174.131865,0.00024657,7]
[346022899,1734631842147,-174.131865,0.00024657,7]
[346022901,1734631842158,-174.131865,0.00024657,7]
[346022903,1734631842169,-174.131865,0.00024657,7]
[346022905,1734631842180,-174.131865,0.00024657,7]
[346022907,1734631842192,-500.0,0.00024657,6]
[346022909,1734631842203,-174.131865,0.00024657,7]
[346022911,1734631842215,-174.131865,0.00024657,7]
[346022913,1734631842227,-515.31405967,0.00024657,6]
[346022915,1734631842240,-174.131865,0.00024657,7]
[346022917,1734631842252,-174.131865,0.00024657,7]
[346022919,1734631842274,-174.13187,0.00024657,7]
[346022921,1734631842286,-1054.18,0.00024657,6]
[346022924,1734631842298,-500.0,0.00024657,6]
[346022928,1734631842311,-500.0,0.00024657,6]
[346022931,1734631842322,-500.0,0.00024657,6]
[346022933,1734631842333,-307.68242287,0.00024657,6]
[346022935,1734631842344,-500.0,0.00024657,6]
[346022937,1734631842356,-500.0,0.00024657,6]
[346022939,1734631842367,-500.0,0.00024657,6]
[346022941,1734631842378,-500.0,0.00024657,6]
[346022944,1734631842390,-151.0,0.00024657,7]
[346022946,1734631842403,-151.0,0.00024657,7]
[346022949,1734631842414,-151.0,0.00024657,7]
[346022952,1734631842426,-500.0,0.00024657,6]
[346022955,1734631842439,-500.0,0.00024657,6]
[346022957,1734631842451,-1198.82,0.00024657,6]
[346022959,1734631842464,-500.0,0.00024657,6]
[346022961,1734631842477,-1098.81,0.00024657,6]
[346022963,1734631842489,-1052.7768081,0.00024657,2]
[346022965,1734631842504,-3799.50864998,0.00024657,2]
[346022970,1734631842530,-1375.58454192,0.00024657,2]
[346022972,1734631842541,-2764.16,0.00024657,6]
[346022975,1734631842553,-500.0,0.00024657,6]
[346022979,1734631842564,-602.77,0.00024657,6]
[346022985,1734631842575,-541.98,0.00024657,6]
[346022988,1734631842587,-151.0,0.00024657,7]
[346022992,1734631842598,-500.0,0.00024657,6]
[346022997,1734631842609,-151.0,0.00024657,7]
[346023001,1734631842619,-151.0,0.00024657,7]
[346023005,1734631842630,-151.0,0.00024657,7]
[346023007,1734631842641,-151.0,0.00024657,7]
[346023009,1734631842652,-500.0,0.00024657,6]
[346023011,1734631842664,-151.0,0.00024657,7]
[346023014,1734631842677,-151.0,0.00024657,7]
[346023017,1734631842690,-151.0,0.00024657,7]
[346023021,1734631842703,-500.0,0.00024657,6]
[346023024,1734631842715,-500.0,0.00024657,6]
[346023049,1734631842936,-2449.13,0.00024657,6]
[346023054,1734631842949,-500.0,0.00024657,6]
[346023059,1734631842961,-400.82686006,0.00024657,6]
[346023065,1734631842973,-500.0,0.00024657,6]
[346023070,1734631842985,-198.614617,0.00024657,7]
[346023074,1734631842997,-501.38555056,0.00024657,6]
[346023077,1734631843009,-198.614617,0.00024657,7]
[346023080,1734631843032,-198.614617,0.00024657,7]
[346023084,1734631843045,-198.614617,0.00024657,7]
[346023087,1734631843058,-10731.65,0.00024657,6]
[346023090,1734631843070,-198.614617,0.00024657,7]
[346023093,1734631843082,-198.614617,0.00024657,7]
[346023096,1734631843094,-198.614617,0.00024657,7]
[346023098,1734631843106,-198.614617,0.00024657,7]
[346023101,1734631843118,-841.09,0.00024657,6]
[346023104,1734631843130,-198.614617,0.00024657,7]
[346023106,1734631843142,-198.614617,0.00024657,7]
[346023110,1734631843154,-198.614617,0.00024657,7]
[346023113,1734631843166,-198.614617,0.00024657,7]
[346023116,1734631843179,-500.0,0.00024657,6]
[346023118,1734631843191,-198.614617,0.00024657,7]
[346023120,1734631843204,-198.614617,0.00024657,7]
[346023122,1734631843217,-198.614617,0.00024657,7]
[346023124,1734631843229,-198.614617,0.00024657,7]
[346023126,1734631843243,-198.614617,0.00024657,7]
[346023128,1734631843255,-198.614617,0.00024657,7]
[346023131,1734631843276,-198.614617,0.00024657,7]
[346023132,1734631843287,-500.0,0.00024657,6]
[346023135,1734631843299,-198.614626,0.00024657,7]
[346023137,1734631843311,-500.0,0.00024657,6]
[346023139,1734631843322,-537.2,0.00024657,6]
[346023141,1734631843334,-500.0,0.00024657,6]
[346023143,1734631843346,-2002.87,0.00024657,6]
[346023145,1734631843358,-1343.05,0.00024657,6]
[346023147,1734631843369,-500.0,0.00024657,6]
[346023149,1734631843381,-5457.62,0.00024657,6]
[346023151,1734631843394,-500.0,0.00024657,6]
[346023153,1734631843405,-45.50856334,0.00024657,6]
[346023155,1734631843425,-343.2,0.00024657,6]
[346023158,1734631843446,-1905.39143666,0.00024657,6]
[346023160,1734631843458,-500.0,0.00024657,6]
[346023162,1734631843470,-1151.54,0.00024657,6]
[346023164,1734631843482,-2984.37,0.00024657,6]
[346023166,1734631843493,-500.4662946,0.00024657,6]
[346023168,1734631843504,-1610.88,0.00024657,6]
[346023170,1734631843523,-500.0,0.00024657,6]
[346023172,1734631843536,-500.0,0.00024657,6]
[346023174,1734631843548,-500.0,0.00024657,6]
[346023176,1734631843560,-500.0,0.00024657,6]
[346023178,1734631843572,-500.0,0.00024657,6]
[346023180,1734631843583,-500.0,0.00024657,6]
[346023183,1734631843595,-500.0,0.00024657,6]
[346023185,1734631843606,-1218.77,0.00024657,6]
[346023187,1734631843617,-500.0,0.00024657,6]
[346023189,1734631843628,-1080.4,0.00024657,6]
[346023191,1734631843640,-1895.75,0.00024657,6]
[346023193,1734631843652,-500.0,0.00024657,6]
[346023195,1734631843663,-500.0,0.00024657,6]
[346023197,1734631843673,-6318.17,0.00024657,6]
[346023200,1734631843685,-577.41,0.00024657,6]
[346023202,1734631843697,-500.0,0.00024657,6]
[346023204,1734631843706,-1186.04,0.00024657,6]
[346023206,1734631843718,-500.0,0.00024657,6]
[346023208,1734631843729,-500.0,0.00024657,6]
[346023210,1734631843740,-500.0,0.00024657,6]
[346023212,1734631843750,-500.0,0.00024657,6]
[346023214,1734631843762,-500.0,0.00024657,6]
[346023216,1734631843779,-1008.65,0.00024657,6]
[346023218,1734631843790,-500.0,0.00024657,6]
[346023220,1734631843802,-1258.53,0.00024657,6]
[346023242,1734631843816,-500.0,0.00024657,6]
[346023248,1734631844064,-500.0,0.00024657,6]
[346023251,1734631844076,-500.0,0.00024657,6]
[346023253,1734631844086,-670.43,0.00024657,6]
[346023255,1734631844097,-500.0,0.00024657,6]
[346023257,1734631844108,-4967.13,0.00024657,6]
[346023259,1734631844118,-500.0,0.00024657,6]
[346023261,1734631844132,-500.0,0.00024657,6]
[346023264,1734631844142,-500.0,0.00024657,6]
[346023267,1734631844153,-500.0,0.00024657,6]
[346023270,1734631844164,-500.0,0.00024657,6]
[346023274,1734631844174,-500.0,0.00024657,6]
[346023277,1734631844184,-2505.33,0.00024657,6]
[346023279,1734631844194,-1504.02,0.00024657,2]
[346023282,1734631844204,-524.06,0.00024657,6]
[346023285,1734631844214,-524.41,0.00024657,6]
[346023288,1734631844226,-1458.97,0.00024657,6]
[346023291,1734631844237,-500.0,0.00024657,6]
[346023294,1734631844247,-500.0,0.00024657,6]
[346023297,1734631844256,-500.0,0.00024657,6]
[346023301,1734631844273,-756.84,0.00024657,6]
[346023303,1734631844284,-21367.46,0.00024657,6]
[346023305,1734631844293,-706.77,0.00024657,6]
[346023307,1734631844304,-500.0,0.00024657,6]
[346023309,1734631844314,-500.0,0.00024657,6]
[346023311,1734631844323,-500.0,0.00024657,6]
[346023313,1734631844333,-2706.43,0.00024657,6]
[346023315,1734631844342,-151.0,0.00024657,7]
[346023317,1734631844352,-151.0,0.00024657,7]
[346023319,1734631844363,-151.0,0.00024657,7]
[346023321,1734631844373,-151.0,0.00024657,7]
[346023323,1734631844383,-151.0,0.00024657,7]
[346023325,1734631844393,-500.0,0.00024657,6]
[346023327,1734631844403,-500.0,0.00024657,6]
[346023329,1734631844412,-259.40968933,0.00024657,6]
[346023331,1734631844421,-151.0,0.00024657,7]
[346023333,1734631844431,-629.45,0.00024657,6]
[346023335,1734631844442,-151.0,0.00024657,7]
[346023337,1734631844452,-500.0,0.00024657,2]
[346023339,1734631844462,-151.0,0.00024657,7]
[346023341,1734631844472,-151.0,0.00024657,7]
[346023343,1734631844484,-151.0,0.00024657,7]
[346023346,1734631844494,-279.928,0.00024657,7]
[346023348,1734631844504,-500.0,0.00024657,6]
[346023350,1734631844517,-1210.16,0.00024657,6]
[346023352,1734631844527,-9396.24,0.00024657,6]
[346023354,1734631844537,-654.59,0.00024657,6]
[346023356,1734631844547,-501.69466415,0.00024657,2]
[346023358,1734631844560,-59920.99,0.00024657,6]
[346023360,1734631844570,-500.0,0.00024657,6]
[346023361,1734631844580,-586.93,0.00024657,6]
[346023363,1734631844590,-500.0,0.00024657,2]
[346023365,1734631844600,-500.0,0.00024657,6]
[346023367,1734631844610,-500.0,0.00024657,6]
[346023369,1734631844620,-1072.31,0.00024657,6]
[346023372,1734631844630,-500.0,0.00024657,6]
[346023374,1734631844640,-500.0,0.00024657,6]
[346023376,1734631844649,-500.0,0.00024657,6]
[346023378,1734631844659,-500.0,0.00024657,6]
[346023380,1734631844669,-2251.27,0.00024657,6]
[346023382,1734631844678,-524.67,0.00024657,6]
[346023384,1734631844688,-500.0,0.00024657,6]
[346023386,1734631844698,-500.0,0.00024657,6]
[346023388,1734631844708,-500.0,0.00024657,6]
[346023390,1734631844717,-500.0,0.00024657,6]
[346023392,1734631844727,-380.0,0.00024658,2]
[346023394,1734631844736,-32414.16536848,0.00024666,30]
[346023418,1734631844971,-732.48787781,0.00024666,30]
[346023420,1734631844984,-7063.34675371,0.00024666,30]
[346023422,1734631844994,-323.04783,0.00024666,7]
[346023425,1734631845004,-500.0,0.00024673,2]
[346023427,1734631845017,-500.0,0.00024673,2]
[346023429,1734631845026,-500.0,0.00024673,2]
[346023430,1734631845036,-500.0,0.00024673,2]
[346023433,1734631845045,-390.9054163,0.00024673,2]
[346023435,1734631845057,-109.0945837,0.00024673,2]
[346023437,1734631845067,-500.0,0.00024673,2]
[346023439,1734631845077,-500.0,0.00024673,2]
[346023441,1734631845087,-250.84025812,0.00024673,2]
[346023443,1734631845096,-500.0,0.00024673,2]
[346023445,1734631845106,-500.0,0.00024673,2]
[346023447,1734631845116,-448.85281003,0.00024673,2]
[346023449,1734631845126,-500.0,0.00024673,2]
[346023451,1734631845135,-2942.35,0.000247,14]
[346023453,1734631845144,-21591.34,0.000247,2]
[346023455,1734631845154,-153.0,0.00024729,2]
[346023457,1734631845164,-153.0,0.00024729,2]
[346023459,1734631845174,-153.0,0.00024729,2]
[346023461,1734631845184,-226.99,0.00024792,2]
[346023463,1734631845194,-997.82842447,0.00024809,2]
[346023466,1734631845206,-29.3930969,0.00024809,2]
[346023467,1734631845215,-5959.26264306,0.00024831,2]
[346023469,1734631845224,-5959.26264304,0.00024858,2]
[346023471,1734631845234,-2370.869695,0.00024862,15]
[346023474,1734631845243,-5959.26264304,0.00024886,2]
[346023476,1734631845253,-5959.26264304,0.00024913,2]
[346023477,1734631845266,-41762.68663592,0.00024931,2]
[346023480,1734631845280,-3250.0,0.00024931,2]
[346023482,1734631845294,-4914.32771394,0.00024931,2]
[346023491,1734631845367,-500.0,0.00024657,6]
[346023493,1734631845378,-500.0,0.00024657,6]
[346023495,1734631845389,-137979.98529397,0.00024931,2]
[346023498,1734631845399,-500.0,0.00024931,6]
[346023501,1734631845409,-1000.0,0.00024931,2]
[346023504,1734631845419,-500.0,0.00024931,6]
[346023506,1734631845429,-500.0,0.00024931,6]
[346023508,1734631845446,-718.01,0.00024931,6]
[346023513,1734631845458,-500.0,0.00024931,6]
[346023517,1734631845468,-500.0,0.00024931,6]
[346023520,1734631845478,-500.0,0.00024931,6]
[346023523,1734631845489,-500.0,0.00024931,6]
[346023527,1734631845499,-500.0,0.00024931,6]
[346023531,1734631845509,-751.57,0.00024931,6]
[346023536,1734631845525,-500.0,0.00024931,6]
[346023541,1734631845535,-500.0,0.00024931,6]
[346023546,1734631845544,-500.0,0.00024931,6]
[346023552,1734631845554,-507.6152592,0.00024931,6]
[346023557,1734631845565,-260.07761331,0.00024931,6]
[346023560,1734631845575,-500.0,0.00024931,6]
[346023566,1734631845585,-500.0,0.00024931,6]
[346023571,1734631845595,-500.0,0.00024931,6]
[346023576,1734631845606,-503.73045688,0.00024931,6]
[346023581,1734631845616,-500.0,0.00024931,6]
[346023585,1734631845626,-500.0,0.00024931,6]
[346023588,1734631845636,-500.0,0.00024931,6]
[346023592,1734631845645,-500.0,0.00024931,6]
[346023595,1734631845655,-500.0,0.00024931,6]
[346023599,1734631845665,-500.0,0.00024931,6]
[346023602,1734631845673,-500.0,0.00024931,6]
[346023605,1734631845682,-500.0,0.00024931,6]
[346023608,1734631845692,-500.0,0.00024931,6]
[346023611,1734631845701,-591.25,0.00024931,6]
[346023614,1734631845714,-514.886403,0.00024931,6]
[346023617,1734631845724,-683.67,0.00024931,6]
[346023620,1734631845734,-500.0,0.00024931,6]
[346023623,1734631845743,-162.16639702,0.00024931,6]
[346023626,1734631845753,-500.0,0.00024931,6]
[346023628,1734631845763,-500.0,0.00024931,6]
[346023630,1734631845776,-500.0,0.00024931,6]
[346023632,1734631845786,-500.0,0.00024931,6]
[346023634,1734631845796,-500.0,0.00024931,6]
[346023636,1734631845807,-272.20410964,0.00024931,6]
[346023638,1734631845817,-500.0,0.00024931,6]
[346023640,1734631845826,-508.98168612,0.00024931,6]
[346023642,1734631845840,-500.0,0.00024931,6]
[346023644,1734631845849,-500.0,0.00024931,6]
[346023646,1734631845859,-500.0,0.00024931,6]
[346023648,1734631845869,-500.0,0.00024931,6]
[346023651,1734631845879,-500.0,0.00024931,6]
[346023652,1734631845888,-500.0,0.00024931,6]
[346023654,1734631845899,-292.23301841,0.00024931,6]
[346023657,1734631845909,-500.0,0.00024931,6]
[346023659,1734631845919,-500.0,0.00024931,6]
[346023661,1734631845929,-500.0,0.00024931,6]
[346023663,1734631845938,-500.0,0.00024931,6]
[346023665,1734631845947,-500.0,0.00024931,6]
[346023667,1734631845956,-500.0,0.00024931,6]
[346023669,1734631845966,-500.0,0.00024931,6]
[346023671,1734631845976,-500.0,0.00024931,6]
[346023673,1734631845985,-500.0,0.00024931,6]
[346023675,1734631845994,-500.0,0.00024931,6]
[346023677,1734631846003,-500.0,0.00024931,6]
[346023679,1734631846012,-526.00535263,0.00024931,6]
[346023681,1734631846029,-576.27,0.00024931,6]
[346023683,1734631846039,-500.0,0.00024931,6]
[346023685,1734631846048,-502.67888677,0.00024931,6]
[346023687,1734631846056,-323.047824,0.00024931,7]
[346023689,1734631846066,-500.0,0.00024931,6]
[346023691,1734631846075,-500.0,0.00024931,6]
[346023693,1734631846084,-500.0,0.00024931,6]
[346023695,1734631846094,-500.0,0.00024931,6]
[346023697,1734631846104,-500.0,0.00024931,6]
[346023699,1734631846113,-500.0,0.00024931,6]
[346023701,1734631846123,-500.0,0.00024931,6]
[346023703,1734631846132,-500.0,0.00024931,6]
[346023705,1734631846143,-500.0,0.00024931,6]
[346023707,1734631846152,-500.0,0.00024931,6]
[346023709,1734631846162,-500.0,0.00024931,6]
[346023711,1734631846172,-500.0,0.00024931,6]
[346023713,1734631846182,-500.0,0.00024931,6]
[346023715,1734631846191,-642.58,0.00024931,6]
[346023717,1734631846201,-500.0,0.00024931,6]
[346023719,1734631846211,-1274.98,0.00024931,6]
[346023721,1734631846221,-500.0,0.00024931,6]
[346023723,1734631846231,-563.97,0.00024931,6]
[346023725,1734631846240,-500.0,0.00024931,6]
[346023727,1734631846250,-500.0,0.00024931,6]
[346023729,1734631846259,-500.0,0.00024931,6]
[346023731,1734631846274,-500.0,0.00024931,6]
[346023733,1734631846284,-500.0,0.00024931,6]
[346023740,1734631846338,-500.0,0.00024931,6]
[346023742,1734631846348,-500.0,0.00024931,6]
[346023744,1734631846358,-673.43,0.00024931,6]
[346023746,1734631846367,-721.96,0.00024931,6]
[346023748,1734631846377,-504.55220382,0.00024931,6]
[346023750,1734631846386,-2459.17,0.00024931,6]
[346023752,1734631846396,-500.0,0.00024931,6]
[346023754,1734631846406,-500.0,0.00024931,6]
[346023756,1734631846415,-500.0,0.00024931,6]
[346023758,1734631846425,-507.54998181,0.00024931,6]
[346023760,1734631846436,-505.64708869,0.00024931,6]
[346023762,1734631846445,-500.0,0.00024931,6]
[346023764,1734631846454,-543.42279079,0.00024931,6]
[346023766,1734631846463,-500.0,0.00024931,6]
[346023768,1734631846475,-500.0,0.00024931,6]
[346023770,1734631846485,-500.0,0.00024931,6]
[346023772,1734631846495,-500.0,0.00024931,6]
[346023774,1734631846504,-500.0,0.00024931,6]
[346023776,1734631846519,-428.35563394,0.00024931,6]
[346023784,1734631846590,-500.0,0.00024657,6]
[346023786,1734631846600,-179.99999999,0.00024657,6]
[346023788,1734631846611,-320.00000001,0.00024657,6]